[Event "*** MasterClass Titled Tuesday Blitz"]
[Site "Chess.com"]
[Date "2017.12.12"]
[Round "3"]
[White "chidori_boruto"]
[Black "djogrodek1"]
[Result "1-0"]
[WhiteElo "2519"]
[BlackElo "2323"]
[TimeControl "180+2"]
[EndTime "13:33:28 PST"]
[Termination "chidori_boruto won by resignation"]

1. d4 {[%clk 0:02:58.7]} 1... d5 {[%clk 0:02:57.4]} 2. Nf3 {[%clk 0:02:59.4]}
2... Nf6 {[%clk 0:02:57.7]} 3. c4 {[%clk 0:03:00.4]} 3... c6 {[%clk 0:02:58.3]}
4. e3 {[%clk 0:03:01.4]} 4... Bf5 {[%clk 0:02:57.6]} 5. Nc3 {[%clk 0:03:02]}
5... e6 {[%clk 0:02:51.6]} 6. Nh4 {[%clk 0:03:02.5]} 6... Be4 {[%clk 0:02:46.5]}
7. f3 {[%clk 0:03:01.2]} 7... Bg6 {[%clk 0:02:46.6]} 8. Qb3 {[%clk 0:03:01]}
8... Qc7 {[%clk 0:02:46.6]} 9. Bd2 {[%clk 0:02:57.8]} 9... Be7 {[%clk
0:02:46.5]} 10. Nxg6 {[%clk 0:02:55.1]} 10... hxg6 {[%clk 0:02:45.4]} 11. g3
{[%clk 0:02:56.1]} 11... O-O {[%clk 0:02:34]} 12. Rc1 {[%clk 0:02:56.7]} 12...
Qd7 {[%clk 0:02:34.4]} 13. Kf2 {[%clk 0:02:55.1]} 13... Rd8 {[%clk 0:02:34]} 14.
Be2 {[%clk 0:02:51.9]} 14... dxc4 {[%clk 0:02:33.9]} 15. Qxc4 {[%clk 0:02:51.7]}
15... c5 {[%clk 0:02:34.7]} 16. Rhd1 {[%clk 0:02:17.1]} 16... cxd4 {[%clk
0:02:35.1]} 17. exd4 {[%clk 0:02:15.2]} 17... Nc6 {[%clk 0:02:33]} 18. Be3
{[%clk 0:02:12.8]} 18... Rac8 {[%clk 0:02:32.5]} 19. Qa4 {[%clk 0:02:08.9]}
19... a6 {[%clk 0:02:25.4]} 20. a3 {[%clk 0:02:06]} 20... Nd5 {[%clk 0:02:05.4]}
21. Nxd5 {[%clk 0:01:58.4]} 21... Qxd5 {[%clk 0:02:07.3]} 22. f4 {[%clk
0:01:22.5]} 22... Bf6 {[%clk 0:01:41.4]} 23. Bf3 {[%clk 0:01:21.4]} 23... Qa2
{[%clk 0:01:42.4]} 24. Rd2 {[%clk 0:01:13]} 24... Bxd4 {[%clk 0:00:59.7]} 25.
Bxd4 {[%clk 0:01:02.7]} 25... Rxd4 {[%clk 0:00:58.7]} 26. Rxd4 {[%clk
0:00:54.8]} 26... Qxb2+ {[%clk 0:00:59.8]} 27. Rc2 {[%clk 0:00:54.2]} 27... Qb6
{[%clk 0:00:54.2]} 28. Bxc6 {[%clk 0:00:53.3]} 28... bxc6 {[%clk 0:00:54.3]} 1-0

[Event "*** MasterClass Titled Tuesday Blitz"]
[Site "Chess.com"]
[Date "2017.12.12"]
[Round "3"]
[White "TijanaBlagojevic"]
[Black "ENEASZ"]
[Result "0-1"]
[WhiteElo "2373"]
[BlackElo "2409"]
[TimeControl "180+2"]
[EndTime "13:33:34 PST"]
[Termination "ENEASZ won by resignation"]

1. e4 {[%clk 0:03:01.9]} 1... d6 {[%clk 0:03:00.6]} 2. d4 {[%clk 0:03:02.4]}
2... Nf6 {[%clk 0:03:01.7]} 3. Nc3 {[%clk 0:03:03.3]} 3... e5 {[%clk 0:03:02.1]}
4. Nf3 {[%clk 0:03:03.2]} 4... Nbd7 {[%clk 0:03:00.4]} 5. a4 {[%clk 0:03:03.8]}
5... Be7 {[%clk 0:02:59.8]} 6. Bc4 {[%clk 0:03:04.9]} 6... O-O {[%clk 0:03:01]}
7. O-O {[%clk 0:03:06]} 7... c6 {[%clk 0:03:02.1]} 8. a5 {[%clk 0:03:06.1]} 8...
Nxe4 {[%clk 0:03:01.4]} 9. Nxe4 {[%clk 0:03:05.2]} 9... d5 {[%clk 0:03:02.6]}
10. Re1 {[%clk 0:02:58.1]} 10... exd4 {[%clk 0:02:30.4]} 11. Qxd4 {[%clk
0:02:31.8]} 11... Nf6 {[%clk 0:02:24.1]} 12. Bxd5 {[%clk 0:02:00]} 12... Qxd5
{[%clk 0:01:53.6]} 13. Nxf6+ {[%clk 0:01:57.3]} 13... Bxf6 {[%clk 0:01:54.7]}
14. Qxd5 {[%clk 0:01:56.2]} 14... cxd5 {[%clk 0:01:56.6]} 15. c3 {[%clk
0:01:49]} 15... h6 {[%clk 0:01:54.6]} 16. Bf4 {[%clk 0:01:48.7]} 16... Bg4
{[%clk 0:01:53.1]} 17. Ne5 {[%clk 0:01:43]} 17... Bf5 {[%clk 0:01:54.3]} 18. a6
{[%clk 0:01:36.7]} 18... bxa6 {[%clk 0:01:42.2]} 19. Rxa6 {[%clk 0:01:35.8]}
19... Rab8 {[%clk 0:01:37.9]} 20. Rxa7 {[%clk 0:01:16.7]} 20... Rxb2 {[%clk
0:01:37.6]} 21. h3 {[%clk 0:01:08.1]} 21... Re8 {[%clk 0:01:32.1]} 22. g4 {[%clk
0:00:35.2]} 22... Be4 {[%clk 0:01:24.8]} 23. Nxf7 {[%clk 0:00:20.9]} 23... Bxc3
{[%clk 0:01:25.2]} 24. Rc1 {[%clk 0:00:19.9]} 24... Bd4 {[%clk 0:01:26]} 25.
Bxh6 {[%clk 0:00:20.6]} 25... Bxf2+ {[%clk 0:01:15.5]} 26. Kf1 {[%clk
0:00:19.7]} 26... Bxa7 {[%clk 0:01:16.4]} 0-1

[Event "*** MasterClass Titled Tuesday Blitz"]
[Site "Chess.com"]
[Date "2017.12.12"]
[Round "3"]
[White "BilodeauA"]
[Black "RoelandPruijssers"]
[Result "1-0"]
[WhiteElo "2741"]
[BlackElo "2436"]
[TimeControl "180+2"]
[EndTime "13:33:44 PST"]
[Termination "BilodeauA won by checkmate"]

1. e4 {[%clk 0:02:48.8]} 1... c5 {[%clk 0:02:58.6]} 2. Nf3 {[%clk 0:02:46.1]}
2... d6 {[%clk 0:02:59.4]} 3. d4 {[%clk 0:02:46.5]} 3... cxd4 {[%clk 0:03:00.2]}
4. Nxd4 {[%clk 0:02:48.4]} 4... Nf6 {[%clk 0:03:01.8]} 5. Nc3 {[%clk 0:02:50]}
5... a6 {[%clk 0:03:03.3]} 6. Be2 {[%clk 0:02:51.5]} 6... e5 {[%clk 0:03:04.1]}
7. Nb3 {[%clk 0:02:53]} 7... Be7 {[%clk 0:03:05.1]} 8. O-O {[%clk 0:02:53.2]}
8... O-O {[%clk 0:03:05.1]} 9. Re1 {[%clk 0:02:54.5]} 9... Be6 {[%clk
0:03:03.5]} 10. Bf3 {[%clk 0:02:54.5]} 10... Nbd7 {[%clk 0:03:02.9]} 11. a4
{[%clk 0:02:54.6]} 11... b6 {[%clk 0:03:03]} 12. Nd2 {[%clk 0:02:52.8]} 12...
Qc7 {[%clk 0:03:03.4]} 13. Nf1 {[%clk 0:02:53.9]} 13... Qb7 {[%clk 0:02:53.8]}
14. Ne3 {[%clk 0:02:54.3]} 14... b5 {[%clk 0:02:54.7]} 15. Be2 {[%clk
0:02:32.6]} 15... b4 {[%clk 0:02:00.5]} 16. Ncd5 {[%clk 0:02:30.1]} 16... Bxd5
{[%clk 0:02:00.9]} 17. Nxd5 {[%clk 0:02:31.2]} 17... Nxd5 {[%clk 0:02:01.7]} 18.
exd5 {[%clk 0:02:31.9]} 18... f5 {[%clk 0:01:59.7]} 19. c4 {[%clk 0:02:29.9]}
19... Nc5 {[%clk 0:01:56.2]} 20. Bd3 {[%clk 0:02:24]} 20... e4 {[%clk
0:01:54.8]} 21. Bf1 {[%clk 0:02:22.3]} 21... Bf6 {[%clk 0:01:55.6]} 22. Rb1
{[%clk 0:02:23.3]} 22... Be5 {[%clk 0:01:51]} 23. f4 {[%clk 0:02:21.7]} 23...
Bf6 {[%clk 0:01:49.8]} 24. Be3 {[%clk 0:02:22.8]} 24... Rac8 {[%clk 0:01:48.6]}
25. b3 {[%clk 0:02:23.2]} 25... g6 {[%clk 0:01:48.1]} 26. Be2 {[%clk 0:02:22.3]}
26... Qg7 {[%clk 0:01:48.7]} 27. Kh1 {[%clk 0:02:22.5]} 27... h6 {[%clk
0:01:49.7]} 28. g4 {[%clk 0:02:18.1]} 28... fxg4 {[%clk 0:01:21.2]} 29. Bxg4
{[%clk 0:02:18.8]} 29... Rce8 {[%clk 0:01:10.4]} 30. Rg1 {[%clk 0:02:20.1]}
30... Nd3 {[%clk 0:01:04]} 31. Bh5 {[%clk 0:02:19.4]} 31... g5 {[%clk
0:00:36.1]} 32. Bxe8 {[%clk 0:02:18]} 32... Rxe8 {[%clk 0:00:38]} 33. fxg5
{[%clk 0:02:18.3]} 33... hxg5 {[%clk 0:00:39.2]} 34. Qh5 {[%clk 0:02:18.3]}
34... Re5 {[%clk 0:00:35.2]} 35. Rbf1 {[%clk 0:02:15.9]} 35... a5 {[%clk
0:00:32.2]} 36. h4 {[%clk 0:02:16.6]} 36... Qh8 {[%clk 0:00:12.2]} 37. Qg6+
{[%clk 0:02:09.3]} 37... Bg7 {[%clk 0:00:12.1]} 38. Qf7+ {[%clk 0:02:09.9]}
38... Kh7 {[%clk 0:00:12.9]} 39. Rxg5 {[%clk 0:02:09.1]} 39... Qc8 {[%clk
0:00:14.2]} 40. Qxg7# {[%clk 0:02:08.5]} 1-0

[Event "*** MasterClass Titled Tuesday Blitz"]
[Site "Chess.com"]
[Date "2017.12.12"]
[Round "3"]
[White "djano"]
[Black "maciek_92"]
[Result "1-0"]
[WhiteElo "2380"]
[BlackElo "2489"]
[TimeControl "180+2"]
[EndTime "13:33:46 PST"]
[Termination "djano won by resignation"]

1. Nc3 {[%clk 0:03:01.9]} 1... Nf6 {[%clk 0:02:56.6]} 2. d4 {[%clk 0:03:02]}
2... d5 {[%clk 0:02:56.8]} 3. Bf4 {[%clk 0:03:02.2]} 3... e6 {[%clk 0:02:51.4]}
4. e3 {[%clk 0:03:02.2]} 4... a6 {[%clk 0:02:52]} 5. Nf3 {[%clk 0:03:00.9]} 5...
c5 {[%clk 0:02:53.4]} 6. dxc5 {[%clk 0:03:00.4]} 6... Bxc5 {[%clk 0:02:53.6]} 7.
Bd3 {[%clk 0:02:59.5]} 7... Nc6 {[%clk 0:02:53.2]} 8. a3 {[%clk 0:02:59.2]} 8...
Qe7 {[%clk 0:02:53.2]} 9. O-O {[%clk 0:02:54]} 9... h6 {[%clk 0:02:51.6]} 10.
Ne5 {[%clk 0:02:53.8]} 10... Nd7 {[%clk 0:02:50.4]} 11. Nxc6 {[%clk 0:02:50.5]}
11... bxc6 {[%clk 0:02:51.5]} 12. e4 {[%clk 0:02:51.6]} 12... Bb7 {[%clk
0:02:48.2]} 13. e5 {[%clk 0:02:45.4]} 13... g5 {[%clk 0:02:45.8]} 14. Bg3 {[%clk
0:02:44.2]} 14... h5 {[%clk 0:02:47.2]} 15. h3 {[%clk 0:02:38.2]} 15... Ba7
{[%clk 0:02:35.4]} 16. Na4 {[%clk 0:02:32.4]} 16... g4 {[%clk 0:02:25.9]} 17. h4
{[%clk 0:02:32.7]} 17... Nb6 {[%clk 0:02:18.4]} 18. b3 {[%clk 0:02:23.9]} 18...
Nxa4 {[%clk 0:02:15.9]} 19. bxa4 {[%clk 0:02:25.8]} 19... Qc7 {[%clk 0:02:00.4]}
20. Rb1 {[%clk 0:02:19.8]} 20... Rb8 {[%clk 0:01:59.1]} 21. Qd2 {[%clk
0:02:20.1]} 21... Kd7 {[%clk 0:01:41.7]} 22. Qf4 {[%clk 0:02:16.1]} 22... Rbf8
{[%clk 0:01:38.9]} 23. Qb4 {[%clk 0:02:13.2]} 23... Bc8 {[%clk 0:01:36.2]} 24.
c4 {[%clk 0:02:05.9]} 24... f5 {[%clk 0:01:21.6]} 25. cxd5 {[%clk 0:02:02.9]}
25... f4 {[%clk 0:01:22.5]} 26. dxe6+ {[%clk 0:02:01.2]} 26... Kxe6 {[%clk
0:01:14.8]} 27. Bxf4 {[%clk 0:01:56.7]} 27... Qd7 {[%clk 0:00:55.2]} 28. Rbd1
{[%clk 0:01:38.1]} 28... Qb7 {[%clk 0:00:49.6]} 29. Qd6+ {[%clk 0:01:31.4]}
29... Kf7 {[%clk 0:00:46.9]} 30. Qg6+ {[%clk 0:01:15]} 30... Ke7 {[%clk
0:00:46.9]} 31. Bg5+ {[%clk 0:01:14.2]} 31... Kd7 {[%clk 0:00:48.1]} 32. Bxa6+
{[%clk 0:01:13.3]} 1-0

[Event "*** MasterClass Titled Tuesday Blitz"]
[Site "Chess.com"]
[Date "2017.12.12"]
[Round "3"]
[White "Yaacovn"]
[Black "MaxLeto"]
[Result "1-0"]
[WhiteElo "2637"]
[BlackElo "2406"]
[TimeControl "180+2"]
[EndTime "13:33:57 PST"]
[Termination "Yaacovn won by resignation"]

1. d4 {[%clk 0:03:01.9]} 1... g6 {[%clk 0:02:50.9]} 2. Nf3 {[%clk 0:02:51.2]}
2... Bg7 {[%clk 0:02:51.8]} 3. c4 {[%clk 0:02:51.1]} 3... d6 {[%clk 0:02:52.8]}
4. Nc3 {[%clk 0:02:52.4]} 4... Bg4 {[%clk 0:02:51]} 5. g3 {[%clk 0:02:53]} 5...
e5 {[%clk 0:02:29.6]} 6. dxe5 {[%clk 0:02:52.3]} 6... Bxf3 {[%clk 0:02:29.2]} 7.
exf3 {[%clk 0:02:52.7]} 7... Bxe5 {[%clk 0:02:31.1]} 8. Qe2 {[%clk 0:02:46.5]}
8... Ne7 {[%clk 0:02:20.3]} 9. Bh6 {[%clk 0:02:41.4]} 9... Qd7 {[%clk
0:01:49.3]} 10. Bg2 {[%clk 0:02:32.1]} 10... Nbc6 {[%clk 0:01:47.2]} 11. O-O
{[%clk 0:02:28.3]} 11... Nf5 {[%clk 0:01:32.4]} 12. Bf4 {[%clk 0:02:13.7]} 12...
Nfd4 {[%clk 0:01:20.6]} 13. Qe4 {[%clk 0:02:07.8]} 13... f5 {[%clk 0:01:20]} 14.
Qd5 {[%clk 0:01:41.4]} 14... Bxf4 {[%clk 0:01:18.2]} 15. Rae1+ {[%clk
0:01:37.7]} 15... Kf8 {[%clk 0:00:44]} 16. gxf4 {[%clk 0:01:37.1]} 16... Re8
{[%clk 0:00:35]} 17. Nb5 {[%clk 0:01:29.7]} 17... Ne2+ {[%clk 0:00:26.2]} 18.
Kh1 {[%clk 0:01:30.3]} 18... Kg7 {[%clk 0:00:14.3]} 19. Qd2 {[%clk 0:01:24.8]}
19... Qe7 {[%clk 0:00:07]} 20. Nc3 {[%clk 0:01:08.4]} 20... Ncd4 {[%clk
0:00:06.9]} 21. Nxe2 {[%clk 0:00:58.5]} 21... Nxe2 {[%clk 0:00:08.8]} 22. Rg1
{[%clk 0:00:58.4]} 22... Qf6 {[%clk 0:00:02.8]} 23. Rxe2 {[%clk 0:00:58.5]}
23... Rxe2 {[%clk 0:00:03.2]} 24. Qxe2 {[%clk 0:01:00.4]} 24... Qf7 {[%clk
0:00:03.6]} 25. Re1 {[%clk 0:00:59]} 25... Kf6 {[%clk 0:00:04.3]} 1-0

[Event "*** MasterClass Titled Tuesday Blitz"]
[Site "Chess.com"]
[Date "2017.12.12"]
[Round "3"]
[White "Vincent_Vega95"]
[Black "ChessWarrior7197"]
[Result "1-0"]
[WhiteElo "2571"]
[BlackElo "2632"]
[TimeControl "180+2"]
[EndTime "13:34:05 PST"]
[Termination "Vincent_Vega95 won by resignation"]

1. Nf3 {[%clk 0:02:58.9]} 1... Nf6 {[%clk 0:03:00.9]} 2. c4 {[%clk 0:03:00.4]}
2... e6 {[%clk 0:03:00]} 3. Nc3 {[%clk 0:03:01.6]} 3... d5 {[%clk 0:03:01]} 4.
d4 {[%clk 0:03:02.3]} 4... a6 {[%clk 0:03:02.5]} 5. cxd5 {[%clk 0:03:02.4]} 5...
exd5 {[%clk 0:03:03.4]} 6. Bg5 {[%clk 0:03:03.3]} 6... Be6 {[%clk 0:02:59]} 7.
e3 {[%clk 0:03:03.7]} 7... c6 {[%clk 0:02:59.2]} 8. Bd3 {[%clk 0:03:04.1]} 8...
Bd6 {[%clk 0:02:59.9]} 9. Ne5 {[%clk 0:02:57.2]} 9... Nbd7 {[%clk 0:02:57.2]}
10. f4 {[%clk 0:02:58]} 10... g6 {[%clk 0:02:37.7]} 11. O-O {[%clk 0:02:56.5]}
11... Be7 {[%clk 0:02:23.4]} 12. f5 {[%clk 0:02:48.8]} 12... gxf5 {[%clk
0:02:22.9]} 13. Bxf5 {[%clk 0:02:50.7]} 13... Nf8 {[%clk 0:01:43.9]} 14. Qf3
{[%clk 0:02:38.8]} 14... Ng6 {[%clk 0:00:40.7]} 15. Bxf6 {[%clk 0:02:29.5]}
15... Bxf6 {[%clk 0:00:33.2]} 16. Bxe6 {[%clk 0:02:28.2]} 16... fxe6 {[%clk
0:00:02.1]} 17. Qxf6 {[%clk 0:02:23.8]} 17... Qxf6 {[%clk 0:00:04]} 18. Rxf6
{[%clk 0:02:25.2]} 18... Nxe5 {[%clk 0:00:05.2]} 19. Rxe6+ {[%clk 0:02:25.5]}
19... Kd7 {[%clk 0:00:05.8]} 20. Rxe5 {[%clk 0:02:27.3]} 20... b5 {[%clk
0:00:07.1]} 21. Rf1 {[%clk 0:02:27.7]} 21... Rhf8 {[%clk 0:00:07.6]} 22. Rh5
{[%clk 0:02:23.2]} 22... Rxf1+ {[%clk 0:00:07.5]} 23. Kxf1 {[%clk 0:02:25]}
23... Rf8+ {[%clk 0:00:09.2]} 24. Ke2 {[%clk 0:02:26.5]} 24... Rf7 {[%clk
0:00:11.1]} 25. Rh6 {[%clk 0:02:28]} 25... b4 {[%clk 0:00:11.5]} 26. Na4 {[%clk
0:02:28.8]} 26... Kc7 {[%clk 0:00:12.5]} 27. Nc5 {[%clk 0:02:29.8]} 27... a5
{[%clk 0:00:13.9]} 28. g4 {[%clk 0:02:28]} 28... Kb6 {[%clk 0:00:13.9]} 29. Nd3
{[%clk 0:02:28.8]} 29... Kb5 {[%clk 0:00:13.4]} 30. Rxc6 {[%clk 0:02:29.1]}
30... Rg7 {[%clk 0:00:13.1]} 31. Rc5+ {[%clk 0:02:30]} 31... Kb6 {[%clk
0:00:12.4]} 32. h3 {[%clk 0:02:31.1]} 32... b3 {[%clk 0:00:11.8]} 33. axb3
{[%clk 0:02:31.8]} 33... Rd7 {[%clk 0:00:12.8]} 34. Nf4 {[%clk 0:02:32.3]} 34...
a4 {[%clk 0:00:13.3]} 35. bxa4 {[%clk 0:02:33]} 35... h5 {[%clk 0:00:14.2]} 36.
b4 {[%clk 0:02:34.3]} 36... hxg4 {[%clk 0:00:14.8]} 37. hxg4 {[%clk 0:02:36.1]}
37... Rh7 {[%clk 0:00:15.7]} 38. Nxd5+ {[%clk 0:02:36]} 38... Ka7 {[%clk
0:00:16]} 39. g5 {[%clk 0:02:36.2]} 39... Ka8 {[%clk 0:00:16]} 40. g6 {[%clk
0:02:37]} 40... Rg7 {[%clk 0:00:15.4]} 41. Nf4 {[%clk 0:02:36.2]} 41... Re7
{[%clk 0:00:13.3]} 42. Rf5 {[%clk 0:02:36.9]} 42... Re8 {[%clk 0:00:10.4]} 43.
g7 {[%clk 0:02:36.9]} 43... Kb7 {[%clk 0:00:11.6]} 44. Rf8 {[%clk 0:02:37.7]}
44... Re7 {[%clk 0:00:05.6]} 45. g8=Q {[%clk 0:02:38.2]} 1-0

[Event "*** MasterClass Titled Tuesday Blitz"]
[Site "Chess.com"]
[Date "2017.12.12"]
[Round "3"]
[White "florianschwabeneder"]
[Black "krzyzan94"]
[Result "0-1"]
[WhiteElo "2472"]
[BlackElo "2616"]
[TimeControl "180+2"]
[EndTime "13:34:38 PST"]
[Termination "krzyzan94 won by resignation"]

1. e4 {[%clk 0:03:01.9]} 1... c5 {[%clk 0:03:00.6]} 2. Nf3 {[%clk 0:03:02.5]}
2... d6 {[%clk 0:03:00]} 3. g3 {[%clk 0:03:03.7]} 3... g6 {[%clk 0:03:00.5]} 4.
Bg2 {[%clk 0:03:04.2]} 4... Bg7 {[%clk 0:03:01.3]} 5. d4 {[%clk 0:03:03.3]} 5...
cxd4 {[%clk 0:03:02]} 6. Nxd4 {[%clk 0:03:04.5]} 6... Nc6 {[%clk 0:02:55.8]} 7.
Ne2 {[%clk 0:03:05.3]} 7... h5 {[%clk 0:02:55.7]} 8. h3 {[%clk 0:03:02]} 8...
Bd7 {[%clk 0:02:53.2]} 9. Nbc3 {[%clk 0:02:56.8]} 9... Qc8 {[%clk 0:02:51.4]}
10. Nf4 {[%clk 0:02:45.5]} 10... Nf6 {[%clk 0:02:49.7]} 11. Ncd5 {[%clk
0:02:44.8]} 11... Nxd5 {[%clk 0:02:24.8]} 12. exd5 {[%clk 0:02:39.6]} 12... Ne5
{[%clk 0:02:23.8]} 13. O-O {[%clk 0:02:39.6]} 13... h4 {[%clk 0:02:10.8]} 14. g4
{[%clk 0:02:34.5]} 14... Nxg4 {[%clk 0:02:11.4]} 15. hxg4 {[%clk 0:02:31.8]}
15... Bxg4 {[%clk 0:02:11.3]} 16. Bf3 {[%clk 0:02:15.9]} 16... Bf5 {[%clk
0:02:08.9]} 17. c3 {[%clk 0:02:10.6]} 17... g5 {[%clk 0:02:05.2]} 18. Ne2 {[%clk
0:01:52.3]} 18... g4 {[%clk 0:01:34.5]} 19. Bh1 {[%clk 0:01:51.6]} 19... Be5
{[%clk 0:01:27]} 20. Nd4 {[%clk 0:01:50]} 20... h3 {[%clk 0:01:13.3]} 21. Re1
{[%clk 0:01:19]} 21... g3 {[%clk 0:01:02.8]} 22. Rxe5 {[%clk 0:00:59]} 22...
dxe5 {[%clk 0:01:02.4]} 23. Nxf5 {[%clk 0:00:55.1]} 23... Qxf5 {[%clk
0:00:45.6]} 24. fxg3 {[%clk 0:00:31.1]} 24... h2+ {[%clk 0:00:43.4]} 25. Kg2
{[%clk 0:00:30.5]} 25... Rd8 {[%clk 0:00:40.4]} 26. Be3 {[%clk 0:00:26.2]} 26...
Rd6 {[%clk 0:00:40]} 27. Qf3 {[%clk 0:00:23.5]} 27... Qh3+ {[%clk 0:00:40.7]}
28. Kf2 {[%clk 0:00:19.3]} 28... Rf6 {[%clk 0:00:41.4]} 29. c4 {[%clk
0:00:11.1]} 29... Rxf3+ {[%clk 0:00:39.6]} 30. Bxf3 {[%clk 0:00:12.6]} 30... Qf5
{[%clk 0:00:40.4]} 31. Kg2 {[%clk 0:00:11.5]} 31... h1=Q+ {[%clk 0:00:40.7]} 0-1

[Event "*** MasterClass Titled Tuesday Blitz"]
[Site "Chess.com"]
[Date "2017.12.12"]
[Round "3"]
[White "rubhani"]
[Black "kereswasbest"]
[Result "0-1"]
[WhiteElo "2353"]
[BlackElo "2226"]
[TimeControl "180+2"]
[EndTime "13:34:38 PST"]
[Termination "kereswasbest won by resignation"]

1. e4 {[%clk 0:03:01]} 1... e5 {[%clk 0:02:24.3]} 2. Nf3 {[%clk 0:02:59.3]} 2...
Nc6 {[%clk 0:02:24.2]} 3. Bb5 {[%clk 0:03:00.3]} 3... Nf6 {[%clk 0:02:23.8]} 4.
d3 {[%clk 0:03:00.8]} 4... d6 {[%clk 0:02:22.5]} 5. O-O {[%clk 0:03:01.1]} 5...
Bd7 {[%clk 0:02:23.6]} 6. Re1 {[%clk 0:03:01.8]} 6... g6 {[%clk 0:02:24.6]} 7.
c3 {[%clk 0:03:03.1]} 7... Bg7 {[%clk 0:02:25.6]} 8. Nbd2 {[%clk 0:03:04.3]}
8... O-O {[%clk 0:02:26.3]} 9. Nf1 {[%clk 0:03:05.3]} 9... h6 {[%clk 0:02:26.9]}
10. Ng3 {[%clk 0:03:06.3]} 10... a6 {[%clk 0:02:26]} 11. Ba4 {[%clk 0:03:07.2]}
11... Re8 {[%clk 0:02:22.9]} 12. h3 {[%clk 0:03:08]} 12... d5 {[%clk 0:02:16.2]}
13. exd5 {[%clk 0:03:01.2]} 13... Nxd5 {[%clk 0:02:16.1]} 14. Bb3 {[%clk
0:03:02.3]} 14... Be6 {[%clk 0:02:05.2]} 15. Ne4 {[%clk 0:02:43.7]} 15... Kh7
{[%clk 0:01:41.8]} 16. Nc5 {[%clk 0:02:43.2]} 16... Bc8 {[%clk 0:01:41]} 17. Nh2
{[%clk 0:02:06.9]} 17... b6 {[%clk 0:01:32.9]} 18. Qf3 {[%clk 0:02:07.3]} 18...
Nce7 {[%clk 0:01:20.2]} 19. c4 {[%clk 0:01:49.9]} 19... bxc5 {[%clk 0:01:06.6]}
20. cxd5 {[%clk 0:01:51]} 20... Bb7 {[%clk 0:01:02.3]} 21. Be3 {[%clk
0:00:53.1]} 21... Bxd5 {[%clk 0:00:57.4]} 22. Bxd5 {[%clk 0:00:53.5]} 22... Qxd5
{[%clk 0:00:57.6]} 23. Qxd5 {[%clk 0:00:53.9]} 23... Nxd5 {[%clk 0:00:57.5]} 24.
Bxc5 {[%clk 0:00:55.8]} 24... Nf4 {[%clk 0:00:55.5]} 25. Rad1 {[%clk 0:00:41.8]}
25... Rad8 {[%clk 0:00:50.7]} 26. d4 {[%clk 0:00:38.9]} 26... e4 {[%clk
0:00:43]} 27. Ng4 {[%clk 0:00:32.1]} 27... f5 {[%clk 0:00:35.1]} 28. Ne5 {[%clk
0:00:22.4]} 28... Bxe5 {[%clk 0:00:35.1]} 29. dxe5 {[%clk 0:00:23.6]} 29... Nd3
{[%clk 0:00:35.6]} 0-1

[Event "*** MasterClass Titled Tuesday Blitz"]
[Site "Chess.com"]
[Date "2017.12.12"]
[Round "3"]
[White "Penguininja"]
[Black "saraswathii"]
[Result "1-0"]
[WhiteElo "2394"]
[BlackElo "2265"]
[TimeControl "180+2"]
[EndTime "13:34:39 PST"]
[Termination "Penguininja won by resignation"]

1. d4 {[%clk 0:03:00.7]} 1... Nf6 {[%clk 0:02:59.3]} 2. c4 {[%clk 0:03:00.9]}
2... g6 {[%clk 0:02:59.9]} 3. Nc3 {[%clk 0:03:01.3]} 3... Bg7 {[%clk 0:02:59.7]}
4. Nf3 {[%clk 0:03:00.9]} 4... d6 {[%clk 0:03:00.7]} 5. Bg5 {[%clk 0:03:02.4]}
5... O-O {[%clk 0:02:59.9]} 6. e3 {[%clk 0:03:03.7]} 6... Nbd7 {[%clk
0:02:48.4]} 7. Be2 {[%clk 0:03:03.8]} 7... c6 {[%clk 0:02:40]} 8. Qc2 {[%clk
0:03:03]} 8... Qc7 {[%clk 0:02:36.5]} 9. O-O {[%clk 0:03:03.3]} 9... e5 {[%clk
0:02:30.9]} 10. Rfd1 {[%clk 0:03:03.9]} 10... Re8 {[%clk 0:02:27.5]} 11. Rac1
{[%clk 0:02:59.8]} 11... h6 {[%clk 0:02:19.2]} 12. Bh4 {[%clk 0:03:00.6]} 12...
Nh7 {[%clk 0:02:16.5]} 13. e4 {[%clk 0:02:36.7]} 13... exd4 {[%clk 0:02:09.8]}
14. Nxd4 {[%clk 0:02:37.9]} 14... Nc5 {[%clk 0:02:10.2]} 15. Bg3 {[%clk
0:02:34.1]} 15... Be5 {[%clk 0:02:00.8]} 16. f4 {[%clk 0:02:29.3]} 16... Bg7
{[%clk 0:01:58.9]} 17. b4 {[%clk 0:02:25.3]} 17... Nd7 {[%clk 0:01:27.4]} 18.
Kh1 {[%clk 0:02:19.4]} 18... a6 {[%clk 0:01:18.2]} 19. a3 {[%clk 0:02:11]} 19...
Ndf8 {[%clk 0:01:08.1]} 20. Rd2 {[%clk 0:02:02.5]} 20... Bd7 {[%clk 0:00:54.1]}
21. Rcd1 {[%clk 0:02:03.6]} 21... Rad8 {[%clk 0:00:54.9]} 22. Nb3 {[%clk
0:01:57.4]} 22... Bxc3 {[%clk 0:00:45]} 23. Qxc3 {[%clk 0:01:58.9]} 23... Rxe4
{[%clk 0:00:45.8]} 24. Bf3 {[%clk 0:01:49.2]} 24... Ree8 {[%clk 0:00:44.5]} 25.
Rxd6 {[%clk 0:01:44.6]} 25... Bf5 {[%clk 0:00:42.4]} 26. c5 {[%clk 0:01:44.2]}
26... Ne6 {[%clk 0:00:36.4]} 27. h3 {[%clk 0:01:38.7]} 27... Ng7 {[%clk
0:00:26.6]} 28. Na5 {[%clk 0:01:36.5]} 28... Nf8 {[%clk 0:00:17.6]} 29. Nc4
{[%clk 0:01:37]} 29... Rd7 {[%clk 0:00:15.1]} 30. Ne5 {[%clk 0:01:37.8]} 30...
Rdd8 {[%clk 0:00:15.5]} 31. Bh4 {[%clk 0:01:37.1]} 31... Rc8 {[%clk 0:00:15.9]}
32. Bf6 {[%clk 0:01:31.2]} 32... Nge6 {[%clk 0:00:14.7]} 33. Nd7 {[%clk
0:01:31.5]} 33... Nxd7 {[%clk 0:00:10]} 34. Rxd7 {[%clk 0:01:33.4]} 34... Qxf4
{[%clk 0:00:11.5]} 35. Be5 {[%clk 0:01:34.5]} 35... Qh4 {[%clk 0:00:10.5]} 36.
Bf6 {[%clk 0:01:27.1]} 36... Qf4 {[%clk 0:00:10.8]} 37. Rxb7 {[%clk 0:01:17.9]}
37... Rc7 {[%clk 0:00:10.2]} 38. Be5 {[%clk 0:01:17.4]} 38... Qxe5 {[%clk
0:00:08.5]} 39. Qxe5 {[%clk 0:01:17.9]} 1-0